{"text_format":"1","workbook":"xlsx","n_sheets":3,"sheets":["新","(BACK)カタログ掲載申込書兼企画書","Sheet1"],"not_rendered":{"charts":0,"images":0,"macros":0,"external_links":0,"defined_names":4,"comments":0,"pivot_tables":0},"unopened":[],"bounds":{"document_bytes":16777216,"sheet_cells":100000,"rows_first":2000,"rows_last":500,"rows_between":2000,"halvings":0,"cell_chars":16384,"cell_head_chars":4096},"cells_cut":0,"cells_raw":0,"read":"whole","date_system":"1900"}

{"sheet":"新","index":0,"n_rows":59,"n_cols":85,"rows_kept":59,"cut":false,"hidden":false,"merged":[[8,27,8,28],[8,31,8,32],[8,33,8,34],[8,39,8,41],[8,42,8,44],[7,27,7,28],[7,31,7,32],[7,33,7,34],[47,25,50,25],[46,26,50,46],[41,36,41,40],[40,31,40,35],[38,76,38,81],[39,76,39,81],[10,60,11,63],[10,64,11,69],[11,49,12,52],[11,53,12,58],[37,41,37,45],[40,36,40,40],[40,41,40,45],[28,60,28,63],[28,64,28,69],[36,63,37,63],[28,42,28,43],[28,44,28,45],[26,42,26,43],[30,44,30,45],[40,76,40,81],[30,42,30,43],[33,53,33,58],[27,60,27,63],[27,64,27,69],[37,76,37,80],[27,53,27,58],[24,60,24,63],[7,78,7,82],[42,79,42,81],[38,60,39,62],[21,49,22,52],[21,53,22,58],[8,55,8,60],[38,53,38,58],[20,64,20,68],[36,64,37,69],[20,49,20,52],[23,49,24,52],[32,60,32,63],[32,64,32,69],[33,60,33,63],[33,64,33,69],[24,64,24,69],[19,60,19,63],[23,64,23,69],[14,64,14,69],[12,67,12,69],[41,76,41,81],[17,64,17,69],[7,49,7,54],[28,55,28,58],[0,74,2,84],[17,35,17,45],[22,35,22,38],[22,39,22,45],[24,35,24,38],[5,60,5,63],[10,53,10,58],[28,53,28,54],[13,64,13,69],[5,53,5,58],[20,32,20,45],[23,60,23,63],[12,64,12,66],[27,49,27,52],[18,53,18,57],[17,49,17,52],[14,53,14,58],[17,53,17,57],[14,60,14,63],[6,64,6,69],[23,53,24,58],[18,64,18,68],[15,49,15,52],[15,53,15,58],[22,2,22,6],[38,36,38,40],[23,2,23,6],[23,7,23,8],[23,9,23,23],[34,2,34,5],[36,2,37,23],[34,6,34,8],[35,2,35,5],[35,6,35,8],[38,31,38,35],[30,32,30,36],[37,31,37,35],[37,36,37,40],[31,2,31,6],[31,9,31,23],[31,7,31,8],[30,2,30,6],[30,7,30,8],[24,2,24,6],[38,2,38,6],[24,39,24,45],[38,41,38,45],[26,33,26,36],[20,2,20,6],[20,7,20,8],[17,2,17,23],[15,7,15,8],[18,2,18,7],[20,9,20,23],[21,2,21,6],[21,7,21,8],[21,9,21,23],[16,2,16,6],[16,9,16,23],[19,9,19,23],[16,7,16,8],[11,9,11,23],[12,9,12,23],[14,9,14,23],[13,49,13,52],[14,49,14,52],[19,53,19,57],[13,53,13,58],[16,25,16,26],[13,25,13,33],[17,28,17,31],[16,27,16,28],[11,27,11,28],[11,31,11,32],[11,33,11,34],[11,39,11,41],[11,42,11,44],[2,2,2,6],[38,7,38,8],[38,9,38,23],[42,13,42,20],[32,2,32,7],[57,15,57,23],[18,9,18,23],[30,49,31,52],[30,53,31,58],[53,12,53,14],[56,4,56,11],[56,15,56,23],[42,41,42,45],[43,31,43,35],[44,31,44,35],[43,36,43,40],[39,53,39,58],[39,49,39,52],[55,15,55,23],[52,4,52,11],[19,49,19,52],[20,53,20,57],[53,4,53,11],[32,9,32,23],[0,65,0,67],[32,30,32,45],[38,63,39,63],[37,49,37,52],[0,57,0,60],[37,53,37,58],[18,49,18,52],[36,49,36,52],[36,60,37,62],[30,64,30,69],[20,60,20,63],[18,60,18,63],[38,64,39,69],[14,25,14,33],[19,64,19,68],[32,49,32,52],[32,53,32,57],[33,49,33,52],[31,64,31,66],[39,41,39,45],[26,44,26,45],[5,64,5,69],[7,55,7,60],[8,49,8,54],[30,9,30,23],[25,2,25,23],[26,2,26,7],[26,9,26,23],[27,2,27,7],[27,9,27,23],[28,2,29,23],[58,4,58,11],[51,15,51,23],[52,15,52,23],[53,15,53,23],[57,4,57,11],[51,4,51,11],[55,4,55,11],[58,15,58,23],[33,2,33,23],[2,7,2,12],[6,9,6,23],[7,9,7,23],[8,9,8,23],[13,9,13,23],[22,7,22,8],[22,9,22,23],[24,7,24,8],[24,9,24,23],[6,2,6,8],[8,2,8,8],[15,2,15,6],[14,2,14,6],[13,2,13,8],[7,2,7,6],[10,2,10,6],[11,7,11,8],[10,7,10,8],[12,7,12,8],[11,2,11,6],[12,2,12,6],[10,9,10,23],[15,9,15,23],[14,7,14,8],[6,53,6,63],[7,61,7,66],[13,60,13,63],[12,60,12,63],[10,49,10,52],[57,74,58,84],[38,49,38,52],[11,80,12,80],[36,53,36,58],[51,66,51,69],[53,66,53,69],[55,67,55,68],[57,66,57,69],[8,61,8,66],[45,66,45,69],[46,66,46,67],[47,66,47,69],[48,66,48,69],[50,66,50,67],[50,68,50,69],[31,67,31,68],[30,60,30,63],[31,60,31,63],[47,49,57,64],[21,60,22,63],[21,64,22,69],[28,49,28,52],[17,60,17,63],[53,42,55,46],[57,42,58,46],[57,26,58,41],[53,26,55,41],[5,50,5,52],[12,35,12,46],[6,49,6,52],[14,35,14,46],[7,42,7,44],[7,39,7,41],[15,25,15,33],[41,41,41,45],[39,31,39,35],[44,41,44,45],[43,41,43,45],[44,36,44,40],[42,36,42,40],[42,31,42,35],[39,36,39,40],[41,31,41,35]]}
[null,"ふるさと納税返礼品掲載申込書",null,null,null,null,null,null,null,null,null,null,null,null,null,null,null,null,null,null,null,null,null,null,null,null,null,null,null,null,null,null,null,null,null,null,null,null,null,null,null,null,null,null,null,null,null,null,null,null,null,null,null,null,null,null,null,{"$f":"TODAY()","v":"2020-12-24"},null,null,null,null,"Ver.1",null,null,"2017-12-01",null,null,"改訂版",null,null,null,null,null,"←　非表示にして　→"]
[]
[null,1,"記載日"]
[]
[null,"【取引先様　企業概要】",null,null,null,null,null,null,null,null,null,null,null,null,null,null,null,null,null,null,null,null,null,null,null,null,null,null,null,null,null,null,null,null,null,null,null,null,null,null,null,null,null,null,null,null,null,null,null,"【企画情報】必須　※郵便局物販サービス記入",null,null,null,null,null,null,null,null,null,null,null,null,null,null,null,null,null,null,null,null,null,null,null,null,null,"受付",null,null,{"$f":"BB28","v":"00:00:00"},{"$f":"BB29","v":"TS"},{"$f":"BD29","v":"00:00:00"},{"$f":"BM28","v":0},{"$f":"VLOOKUP(BB12,BX16:CC19,6,FALSE)","v":"TS直販"}]
[null,2,"商品仕入契約書乙部分",null,null,null,null,null,null,null,null,null,null,null,null,null,null,null,null,null,null,null,null,null,null,14,"事業運営概要（直近1年決算分）",null,null,null,null,null,null,null,null,null,null,null,null,null,null,null,null,null,null,null,null,null,null,23,"施策種別",null,null,"ふるさと納税",null,null,null,null,null,null,"WEBへの掲載　必須",null,null,null,"無し",null,null,null,null,null,null,null,null,null,null,"社名/カタログ名",null,null,{"$f":"J11","v":0},{"$f":"BB7","v":0},{"$f":"BB6","v":"ふるさと納税"}]
[null,null,"会社名（屋号がある場合は屋号）",null,null,null,null,null,null,null,null,null,null,null,null,null,null,null,null,null,null,null,null,null,null,null,"法人種別（該当する項目に○を記入）",null,null,null,null,null,null,null,null,"株式会社・有限会社",null,null,null,null,null,"協同組合",null,null,null,"その他",null,null,null,"企画名　　全半角",null,null,null,null,null,null,null,null,null,null,null,null,null,null,"←正確な企画名を記入してください",null,null,null,null,null,null,null,null,null,null,"データ区分",null,null,{"$f":"IF(BM13=\"CSV\",\"\",\"\")","v":""},{"$f":"AX9","v":"00:00:00"},{"$f":"BD9","v":"00:00:00"},{"$f":"IF(BJ9=\"\",\"-\",BJ9)","v":"-"}]
[null,null,"住　　所",null,null,null,null,null,"〒",null,null,null,null,null,null,null,null,null,null,null,null,null,null,null,null,null,"西暦",null,null,"年度",null,"月決算",null,"売上高",null,null,null,null,"千円","税引き後損益",null,null,null,null,null,"千円",null,null,null,"注文開始日　yyyy/mm/dd",null,null,null,null,null,"注文終了日　yyyy/mm/dd",null,null,null,null,null,"WEB注文終了日　yyyy/mm/dd",null,null,null,null,null,"開始","終了","WEB",null,null,null,null,null,"エリア",null,null,{"$f":"BB14&\"　\"&BB15&\"　\"&BB16","v":"全国（本社）　　"}]
[null,null,"契約書締結者役職・氏名",null,null,null,null,null,null,null,null,null,null,null,null,null,null,null,null,null,null,null,null,null,null,null,null,null,null,null,null,null,null,null,null,null,null,null,null,null,null,null,null,null,null,null,null,null,null,null,null,null,null,null,null,null,null,null,null,null,null,null,null,null,null,null,null,{"$f":"IF(AX9=\"\",\"\",IF(AX9>BF1,\"●\",\"×確認\"))","v":""},{"$f":"IF(BD9=\"\",\"\",IF(BD9>AX9,\"●\",\"×確認\"))","v":""},{"$f":"IF(BJ9=\"\",\"\",IF(BJ9>=BD9,\"●\",\"×確認\"))","v":""},null,null,null,null,null,"事業者",null,null,{"$f":"BM37","v":0},{"$f":"BM39","v":0},{"$f":"BY38","v":"本社（TS）"}]
[]
[null,3,"事業者名",null,null,null,null,"全半角",null,null,null,null,null,null,null,null,null,null,null,null,null,null,null,null,null,null,"法人種別（該当する項目に○を記入）",null,null,null,null,null,null,null,null,"個人事業主",null,null,null,null,null,null,null,null,null,null,null,null,null,"カタログ種別",null,null,null,"通常",null,null,null,null,null,null,"仕入区分（発注/精算）",null,null,null,{"$f":"IF(BB12=\"\",\"\",VLOOKUP(BB12,BX16:CA20,4,FALSE))","v":"CSS→TS直販"},null,null,null,null,null,null,null,null,null,null,"選考会議日",null,null,{"$f":"BB31","v":"00:00:00"}]
[null,null,"　事業者名カナ",null,null,null,null,"全角カタカナ",null,null,null,null,null,null,null,null,null,null,null,null,null,null,null,null,null,null,"西暦",null,null,"年度",null,"月決算",null,"収入金額",null,null,null,null,"千円","所得金額",null,null,null,null,null,"千円",null,null,null,"商流区分　　必須",null,null,null,"TS直販（カタログ無）",null,null,null,null,null,null,null,null,null,null,null,null,null,null,null,null,null,null,null,null,null,"斡旋／決済",null,null,{"$f":"BM31","v":0},{"$f":"IF(BM32=\"従量制\",\"従量制\",IF(BP32=\"\",\"\",IF(BM32=\"料率\",BP32&\"%\",BP32)))","v":""},"前年\nコード","イベント",{"$f":"AP42","v":0}]
[null,null,"　郵便番号",null,null,null,null,"半角",null,null,null,null,null,null,null,null,null,null,null,null,null,null,null,null,null,15,"主要な事業",null,null,null,null,null,null,null,16,"郵便局カタログ販売に参加の有無",null,null,null,null,null,null,null,null,null,null,null,null,null,null,null,null,null,null,null,null,null,null,null,null,"CSS発注方式",null,null,null,{"$f":"IF(BM11=\"\",\"\",IF(OR(BM11=CA16,BM11=CA17),\"CSV\",\"-\"))","v":"CSV"},null,null,{"$f":"IF(BM11=CA19,\"電算は基本PDF\",\"\")","v":""},null,null,null,null,null,null,null,"計画/仕入率",null,null,{"$f":"BB33*1000","v":0},{"$f":"BB34","v":0},null,"その他",{"$f":"AP45","v":0}]
[null,null,"　住所１　（丁目まで記入ください）",null,null,null,null,null,null,null,null,null,null,null,null,null,null,null,null,null,null,null,null,null,null,null,null,null,null,null,null,null,null,null,null,null,"有",null,"無",null,null,null,null,null,null,null,null,null,null,"展開エリア1　必須",null,null,null,"全国（本社）",null,null,null,null,null,null,"POS注文対応",null,null,null,{"$f":"IF(BB12=\"\",\"\",IF(BB6=\"ふるさと納税\",\"非対応\",IF(BB12=BX16,\"対応\",\"非対応\")))","v":"非対応"}]
[null,null,"　住所２　　　　　　　　",null,null,null,null,"全半角",null,null,null,null,null,null,null,null,null,null,null,null,null,null,null,null,null,null,null,null,null,null,null,null,null,null,17,"郵便局カタログ販売に参加している関連会社の有無（出資又は役員兼務）",null,null,null,null,null,null,null,null,null,null,null,null,null,"　　展開エリア2",null,null,null,null,null,null,null,null,null,null,"POSカタログ区分",null,null,null,{"$f":"IF(BM14=\"対応\",\"単品登録\",\"-\")","v":"-"}]
[null,null,"　代表者名",null,null,null,null,"全半角",null,null,null,null,null,null,null,null,null,null,null,null,null,null,null,null,null,null,null,null,null,null,null,null,null,null,null,null,"有",null,"無",null,null,null,null,null,null,null,null,null,null,"展開エリア3　入力",null,null,null,null,null,null,null,null,null,null,null,null,null,null,null,null,null,null,null,null,null,null,null,null,null,"TS直販",null,null,"CSS→TS直販",null,"TS直販","対応","単品登録","CSV"]
[null,null,"　代表者名カナ",null,null,null,null,"全角カタカナ",null,null,null,null,null,null,null,null,null,null,null,null,null,null,null,null,null,"会社設立年月日",null,null,null,"年",null,"月",null,"日",null,"「有り」の場合は具体的名称を記入ください",null,null,null,null,null,null,null,null,null,null,null,null,null,null,null,null,null,null,null,null,null,null,null,null,null,null,null,null,null,null,null,null,null,null,null,null,null,null,null,"TS直販（カタログ無）",null,null,"CSS→TS直販",null,"TS直販","非対応","-","CSV"]
[null,4,"本社以外が申し込む場合の支社情報（該当しない場合は記入不要です）",null,null,null,null,null,null,null,null,null,null,null,null,null,null,null,null,null,null,null,null,null,null,"資本金（万円）",null,null,null,null,null,null,"万円",null,null,null,null,null,null,null,null,null,null,null,null,null,null,null,null,"カタログページ数",null,null,null,null,null,null,null,null,"/頁",null,"カタログ制作仕様",null,null,null,null,null,null,null,null,null,null,null,null,null,null,"TS直販（Web限定）",null,null,"Web→TS直販",null,"TS直販","非対応","-","－"]
[null,null,"住　　所",null,null,null,null,null,"〒",null,null,null,null,null,null,null,null,null,null,null,null,null,null,null,null,18,"申込商品の取扱いに関わる関係（該当する項目に○を記入してください）　（該当しない場合は記入不要です）",null,null,null,null,null,null,null,null,null,null,null,null,null,null,null,null,null,null,null,null,null,null,"ページあたり コマ数",null,null,null,null,null,null,null,null,"/点",null,"平均単価見込み",null,null,null,null,null,null,null,null,"/円",null,null,null,null,null,"TS直販（売報）",null,null,"売報（CSS外）",null,"TS売報","年賀状印刷","金額登録","－"]
[null,null,"支社支店名",null,null,null,null,null,null,null,null,null,null,null,null,null,null,null,null,null,null,null,null,null,null,null,"①他社に製造委託する販売者",null,null,null,null,null,null,null,null,null,null,null,null,null,null,null,null,null,null,null,null,null,null,"合計コマ数",null,null,null,null,null,null,null,null,"/点",null,"カタログ作成 部数",null,null,null,null,null,null,null,null,"/部",null,null,null,null,null,"TS直販（JP外）",null,null,"電算（CSS外）",null,"TS直販（-CSS）",null,null,"－"]
[null,5,"返礼品担当者名",null,null,null,null,"全半角",null,null,null,null,null,null,null,null,null,null,null,null,null,null,null,null,null,null,null,"製造（仕入）企業名",null,null,null,null,null,null,null,null,null,null,null,null,null,null,null,null,null,null,null,null,null,"アイテム数",null,null,null,null,null,null,null,null,"/点",null,"物流センター 納入数",null,null,null,null,null,null,null,null,"/部"]
[null,null,"　担当部署名",null,null,null,null,"全半角",null,null,null,null,null,null,null,null,null,null,null,null,null,null,null,null,null,null,"②加工品メーカー（農産加工品・水産加工品・畜肉加工品・生麺・漬物類等）",null,null,null,null,null,null,null,null,null,null,null,null,null,null,null,null,null,null,null,null,null,null,"企画内容（コンセプト）",null,null,null,null,null,null,null,null,null,null,"物流センターへの\n納品日",null,null,null,null,null,null,null,null,null,null,null,null,null,null,"全国（本社）","本社（TS）",null,"3501",null,null,null,"全国（本社）","本社"]
[null,null,"　連絡先電話番号",null,null,null,null,"半角",null,null,null,null,null,null,null,null,null,null,null,null,null,null,null,null,null,null,null,"商品製造工場",null,null,null,"自社工場",null,null,null,"委託工場　企業名",null,null,null,null,null,null,null,null,null,null,null,null,null,null,null,null,null,null,null,null,null,null,null,null,null,null,null,null,null,null,null,null,null,null,null,null,null,null,null,"北海道","北海道（TS）",null,"1001",null,null,null,"北海道","北海道"]
[null,null,"　連絡先FAX",null,null,null,null,"半角",null,null,null,null,null,null,null,null,null,null,null,null,null,null,null,null,null,null,"③加工品メーカー（飲料・菓子・調味料等）",null,null,null,null,null,null,null,null,null,null,null,null,null,null,null,null,null,null,null,null,null,null,"主な商品内容",null,null,null,null,null,null,null,null,null,null,"旧郵便事業会社への委託",null,null,null,"無し",null,null,null,null,null,null,null,null,null,null,"東北","東北（TS）",null,"2001",null,null,null,"東北","東北"]
[null,null,"　担当者メールアドレス　　",null,null,null,null,"半角",null,null,null,null,null,null,null,null,null,null,null,null,null,null,null,null,null,null,null,"商品製造工場",null,null,null,"自社工場",null,null,null,"委託工場　企業名",null,null,null,null,null,null,null,null,null,null,null,null,null,null,null,null,null,null,null,null,null,null,null,null,"「委託無し」の場合理由を記入ください",null,null,null,null,null,null,null,null,null,null,null,null,null,null,"関東","関東（TS）",null,"3101",null,null,null,"関東","関東"]
[null,null,"　* 担当者メールアドレス⇒ カタログ掲載申込みのご担当者様のメールアドレスをご記入ください。",null,null,null,null,null,null,null,null,null,null,null,null,null,null,null,null,null,null,null,null,null,null,null,"④農産品（卸・仲卸・ＪＡ等）",null,null,null,null,null,null,null,null,null,null,null,null,null,null,null,null,null,null,null,null,null,null,null,null,null,null,null,null,null,null,null,null,null,null,null,null,null,null,null,null,null,null,null,null,null,null,null,null,"東京","東京（TS）",null,"3301",null,null,null,"東京","東京"]
[null,6,"発注連絡用メールアドレス①",null,null,null,null,null,"必須",null,null,null,null,null,null,null,null,null,null,null,null,null,null,null,null,null,null,"商品仕入先",null,null,null,"青果市場",null,null,null,null,null,null,null,"農家直接",null,null,"その他",null,null,null,null,null,null,"【TS担当者情報】　*TSの企画書受付担当者が入力してください。",null,null,null,null,null,null,null,null,null,null,null,null,null,null,null,null,null,null,null,null,null,null,null,null,null,"南関東","南関東（TS）",null,"3201",null,null,null,"南関東","南関東"]
[null,null,"発注連絡用メールアドレス②",null,null,null,null,null,null,null,null,null,null,null,null,null,null,null,null,null,null,null,null,null,null,null,"⑤農産品生産者",null,null,null,null,null,null,null,null,null,null,null,null,null,null,null,null,null,null,null,null,null,null,"受付日　　　*",null,null,null,null,null,null,null,null,null,null,"担当者名　　　*",null,null,null,null,null,null,null,null,null,null,null,null,null,null,"信越","信越（TS）",null,"3401",null,null,null,"信越","信越"]
[null,null,"　*　発注連絡用メールアドレス⇒ 発注情報を受取るメールアドレスをご記入ください。 \n　　　①は必須、②は任意です。発注情報は、入力された発注連絡用メールアドレス①～②に一斉配信します。",null,null,null,null,null,null,null,null,null,null,null,null,null,null,null,null,null,null,null,null,null,null,null,null,"経営形態",null,null,null,"個人",null,null,null,"農業法人",null,null,null,"組合",null,null,"その他",null,null,null,null,null,null,"事業本部/支社名　*",null,null,null,"TS",null,null,null,null,null,null,"整理番号",null,null,null,null,null,null,null,null,null,null,null,null,null,null,"北陸","北陸（TS）",null,"4001",null,null,null,"北陸","北陸"]
[null,null,null,null,null,null,null,null,null,null,null,null,null,null,null,null,null,null,null,null,null,null,null,null,null,null,"⑥水産生鮮品生産者（卸・仲卸・漁協等）",null,null,null,null,null,null,null,null,null,null,null,null,null,null,null,null,null,null,null,null,null,null,"【選考会議資料情報】　",null,null,null,null,null,"※選考会議資料から、下記情報を記入してください。",null,null,null,null,null,null,null,null,null,null,null,null,null,null,null,null,null,null,null,"東海","東海（TS）",null,"5001",null,null,null,"東海","東海"]
[null,7,"精算（経理）担当者名",null,null,null,null,"全半角",null,null,null,null,null,null,null,null,null,null,null,null,null,null,null,null,null,null,null,"商品仕入先",null,null,null,"市場",null,null,null,null,null,null,null,"直接",null,null,"その他",null,null,null,null,null,null,"選考会議日　*",null,null,null,null,null,null,null,null,null,null,"斡旋手数料率　*",null,null,null,null,null,null,null,null,null,null,null,null,null,null,"近畿","近畿（TS）",null,"6001",null,null,null,"近畿","近畿"]
[null,null,"連絡先電話番号・FAX",null,null,null,null,"半角　必須",null,null,null,null,null,null,null,null,null,null,null,null,null,null,null,null,null,null,"⑦食肉生鮮品生産者",null,null,null,null,null,null,null,null,null,null,null,null,null,null,null,null,null,null,null,null,null,null,null,null,null,null,null,null,null,null,null,null,null,"決済手数料　　*",null,null,null,null,null,null,null,null,{"$f":"IF(BM32=\"固定金額\",\"円\",IF(BM32=\"料率\",\"％\",\"\"))","v":""},null,null,null,null,null,"中国","中国（TS）",null,"7001",null,null,null,"中国","中国"]
[null,null,"精算通知用メールアドレス",null,null,null,null,null,"必須",null,null,null,null,null,null,null,null,null,null,null,null,null,null,null,null,null,null,"仕入先名",null,null,null,null,null,null,null,null,null,null,null,null,null,null,null,null,null,null,null,null,null,"販売目標金額　*",null,null,null,null,null,null,null,null,"/千円",null,"クレジット手数料",null,null,null,{"$f":"IF(OR(BM6=\"\",BM6=\"無し\"),\"\",2.8%)","v":""},null,null,null,null,null,null,null,null,null,null,"四国","四国（TS）",null,"8001",null,null,null,"四国","四国"]
[null,null,"　*　精算通知用メールアドレス（必須）⇒ 精算情報を受取るメールアドレスを記入ください。",null,null,null,null,null,null,null,null,null,null,null,null,null,null,null,null,null,null,null,null,null,null,"【カタログ・チラシ参加実績】",null,null,null,null,null,null,null,null,null,null,null,null,null,null,null,null,null,null,null,null,null,null,null,"商品仕入率　　*",null,null,null,null,null,null,null,null,null,null,"自払手数料　　*",null,null,null,null,null,null,null,null,null,null,null,null,null,null,"九州","九州（TS）",null,"9001",null,null,null,"九州","九州"]
[null,8,"精算用　ゆうちょ銀行",null,null,null,"総合口座番号",null,null,1,null,null,null,0,"-",null,null,null,null,null,null,null,1,null,null,19,"郵便局関連のカタログへの参加実績（現在参加中～過去1年分）　（該当しない場合は記入不要です）",null,null,null,null,null,null,null,null,null,null,null,null,null,null,null,null,null,null,null,null,null,null,null,null,null,null,null,null,null,null,null,null,null,null,null,null,null,null,null,null,null,null,null,null,null,null,null,null,"沖縄","沖縄（TS）",null,"0001",null,null,null,"沖縄","沖縄"]
[null,null,null,null,null,null,"振替口座番号",null,null,null,null,null,null,null,"-",null,"-",null,null,null,null,null,null,null,null,null,"該当項目すべてに○を記入してください。　＊イベント例：「子供の日」「敬老の日」「鍋じまん」「クリスマス」等",null,null,null,null,null,null,null,null,null,null,null,null,null,null,null,null,null,null,null,null,null,null,"【TS設定済コード情報】",null,null,null,null,null,null,"※品目コードは15ケタです。",null,null,null,null,null,null,null,null,null,null,null,null,null,null,null,null,null,null,null,null,null,null,null,null,null,"本社","食品２部"]
[null,null,"　*　上記に、ゆうちょ銀行の総合口座又は振替口座の記号番号を、右詰めで記入してください。\n　*　両方に記入があった場合、総合口座を優先させていただきます。",null,null,null,null,null,null,null,null,null,null,null,null,null,null,null,null,null,null,null,null,null,null,null,null,null,null,null,null,"年度",null,null,null,null,"展開エリア",null,null,null,null,"カタログコード",null,null,null,null,null,null,null,"品目コード1（）",null,null,null,null,null,null,null,null,null,null,"事業者コード",null,null,"半角",null,null,null,null,null,null,null,null,null,null,null,"品目コード",null,null,null,null,null,null,null,"推進３部"]
[null,null,null,null,null,null,null,null,null,null,null,null,null,null,null,null,null,null,null,null,null,null,null,null,null,null,null,"　全国版カタログ",null,null,null,null,null,null,null,null,null,null,null,null,null,null,null,null,null,null,null,null,null,"品目コード2（）",null,null,null,"",null,null,null,null,null,null,null,null,null,null,null,null,null,null,null,null,null,null,null,null,null,"地域\nコード",{"$f":"IF(BB14=\"\",\"\",IF($BB$16<>\"\",BY22,IF($BB$15<>\"\",BY22,VLOOKUP($BB$14,BX22:BY35,2,FALSE))))","v":"本社（TS）"},null,null,null,null,null,{"$f":"VLOOKUP(BY38,BY22:CA35,3,FALSE)","v":"3501"}]
[null,9,"精算用　口座名義カナ",null,null,null,null,"全角カタカナ",null,null,null,null,null,null,null,null,null,null,null,null,null,null,null,null,null,null,null,"　単独版チラシ",null,null,null,null,null,null,null,null,null,null,null,null,null,null,null,null,null,null,null,null,null,"品目コード3（）",null,null,null,"",null,null,null,null,null,null,"カタログコード",null,null,"半角",null,null,null,null,null,null,null,null,null,null,null,1,{"$f":"IF(BY38=\"\",\"\",CE39&$CE$38&BM39&CF39)","v":"KKK3501000"},null,null,null,null,null,"KKK","000"]
[null,null,"*　通帳に印字されている通りに記入してください。なお、通帳名義人掲載ページのコピー添付をお願いします。",null,null,null,null,null,null,null,null,null,null,null,null,null,null,null,null,null,null,null,null,null,null,null,null,"　お中元カタログ",null,null,null,null,null,null,null,null,null,null,null,null,null,null,null,null,null,null,null,null,null,"品目コード4（）",null,null,null,"",null,null,null,null,null,null,null,null,null,null,null,null,null,null,null,null,null,null,null,null,null,2,{"$f":"IF(CE40=\"\",\"\",CE40&$CE$38&BM$39&CF40)","v":""}]
[null,null,null,null,null,null,null,null,null,null,null,null,null,null,null,null,null,null,null,null,null,null,null,null,null,null,null,"　お歳暮カタログ",null,null,null,null,null,null,null,null,null,null,null,null,null,null,null,null,null,null,null,null,null,null,null,null,null,null,null,null,null,null,null,null,null,null,null,null,null,null,null,null,null,null,null,null,null,null,null,3,{"$f":"IF(CE41=\"\",\"\",CE41&$CE$38&BM$39&CF41)","v":""}]
[null,10,"料金後納郵便お客様番号（32桁） （ 後納申請窓口・差出予定局を記入してください。）",null,null,null,null,null,null,null,null,null,null,null,null,null,null,null,null,null,null,null,null,null,null,null,null,"　イベント",null,null,null,null,null,null,null,null,null,null,null,null,null,null,null,null,null,null,null,null,null,null,null,null,null,null,null,null,null,null,null,null,null,null,null,null,null,null,null,null,null,null,null,null,null,null,null,4,""]
[null,null,null,null,"旧　郵便事業会社",null,null,null,null,"旧　局会社",null,null,null,null,null,null,null,null,null,null,null,"郵便局",null,null,null,null,null,"　味倶楽部"]
[null,null,1,2,3,4,5,6,7,8,9,10,null,1,2,3,4,5,6,null,null,null,null,null,null,null,null,"　頒布会",null,null,null,null,null,null,null,null,null,null,null,null,null,null,null,null,null,null,null,null,null,null,null,null,null,null,null,null,null,null,null,null,null,null,null,null,null,null,null,null,null,null,null,null,null,null,null,"ts","g→a→k→b→k→s",null,null,null,null,"<注意点>"]
[null,null,null,null,null,null,null,null,null,null,null,null,"－",null,null,null,null,null,null,"－",null,null,null,null,null,null,null,"　その他",null,null,null,null,null,null,null,null,null,null,null,null,null,null,null,null,null,null,null,null,null,null,null,null,null,null,null,null,null,null,null,null,null,null,null,null,null,null,null,null,null,null,null,null,null,null,null,null,"g",null,"業務用",null,null,"売報→水源水など"]
[null,null,null,null,null,null,null,null,null,null,null,null,null,null,"－",null,null,null,null,null,null,null,null,null,null,"【備考欄】",null,null,null,null,null,null,null,null,null,null,null,null,null,null,null,null,null,null,null,null,null,null,null,null,null,null,null,null,null,null,null,null,null,null,null,null,null,null,null,null,"ＴＳコード設定",null,null,null,null,null,null,null,null,null,"k",null,"返却"]
[null,null,null,null,1,2,3,4,5,6,7,8,9,10,null,1,2,3,4,5,6,null,null,null,null,20,null,null,null,null,null,null,null,null,null,null,null,null,null,null,null,null,null,null,null,null,null,null,null,"【通信欄】",null,null,null,null,null,null,null,null,null,null,null,null,null,null,null,null,"承認者",null,null,null,null,null,null,null,null,null,"s",null,"全戻し"]
[null,null,"※","旧ＪＰＥＸシステムをご利用されている場合は、右記に✔を入れてください。",null,null,null,null,null,null,null,null,null,null,null,null,null,null,null,null,null,null,null,null,null,null,null,null,null,null,null,null,null,null,null,null,null,null,null,null,null,null,null,null,null,null,null,null,null,"",null,null,null,null,null,null,null,null,null,null,null,null,null,null,null,null,"氏名",null,null,null,null,null,null,null,null,null,"a",null,"半戻し"]
[null,null,null,null,null,null,null,null,null,null,null,null,null,null,null,null,null,null,null,null,null,null,null,null,null,null,null,null,null,null,null,null,null,null,null,null,null,null,null,null,null,null,null,null,null,null,null,null,null,null,null,null,null,null,null,null,null,null,null,null,null,null,null,null,null,null,"1900/1/0",null,null,null,null,null,null,null,null,null,"b","　","一つ戻し"]
[]
[null,11,"業務委託先（他社への業務委託がある場合のみ記入ください）",null,null,null,null,null,null,null,null,null,null,null,null,null,null,null,null,null,null,null,null,null,null,null,null,null,null,null,null,null,null,null,null,null,null,null,null,null,null,null,null,null,null,null,null,null,null,null,null,null,null,null,null,null,null,null,null,null,null,null,null,null,null,null,"設定者",null,"氏名",null,null,null,null,null,null,"ver1.5　","「ふるさと納税」は「TS直販」商流を選んでもPOS「非対応」に"]
[null,"　委託先名",null,null,null,null,null,null,null,null,null,null,"　TEL",null,null,null,null,null,null,null,null,null,null,null,null,"【資料提出確認欄】当掲載申込書の提出時に、資料の有・無を確認し該当項目に○を記載してください。",null,null,null,null,null,null,null,null,null,null,null,null,null,null,null,null,null,null,null,null,null,null,null,null,null,null,null,null,null,null,null,null,null,null,null,null,null,null,null,null,"1900/1/0"]
[null,"　代表者名",null,null,null,null,null,null,null,null,null,null,"　住所",null,null,null,null,null,null,null,null,null,null,null,null,21,"直近１期分の決算書",null,null,null,null,null,null,null,null,null,null,null,null,null,null,null,null,"有"]
[null,"　担当者名",null,null,null,null,null,null,null,null,null,null,"　委託の業務内容",null,null,null,null,null,null,null,null,null,null,null,null,null,"法人の場合は貸借対照表と損益計算書１年分、個人事業者の場合は直近の確定申告書又は青色申告書１期分を提出してください。\n",null,null,null,null,null,null,null,null,null,null,null,null,null,null,null,null,null,null,null,null,null,null,null,null,null,null,null,null,null,null,null,null,null,null,null,null,null,null,null,"日本郵便本社"]
[null,12,"お客様対応責任者",null,null,null,null,null,null,null,null,null,13,"個人情報管理責任者"]
[null,"　所属",null,null,null,null,null,null,null,null,null,null,"　所属",null,null,null,null,null,null,null,null,null,null,null,null,null,null,null,null,null,null,null,null,null,null,null,null,null,null,null,null,null,null,null,null,null,null,null,null,null,null,null,null,null,null,null,null,null,null,null,null,null,null,null,null,null,null,"承認"]
[null,"　役職",null,null,null,null,null,null,null,null,null,null,"　役職",null,null,null,null,null,null,null,null,null,null,null,null,22,"履歴事項全部証明書",null,null,null,null,null,null,null,null,null,null,null,null,null,null,null,null,"有",null,null,null,null,null,null,null,null,null,null,null,null,null,null,null,null,null,null,null,null,null,null,null,null,null,null,null,null,null,null,null,null,null,null,null,null,null,null,null,null,"　TS　カタログ審査部"]
[null,"　氏名",null,null,null,null,null,null,null,null,null,null,"　氏名",null,null,null,null,null,null,null,null,null,null,null,null,null,"発行後６ヶ月以内の原本。提出後、会社名・代表者名等に変更があった場合は再提出が必要です。",null,null,null,null,null,null,null,null,null,null,null,null,null,null,null,null,null,null,null,null,null,null,null,null,null,null,null,null,null,null,null,null,null,null,null,null,null,null,null,"1900/1/0",null,null,null,null,null,null,null,"←　非表示にして　→"]
[null,"　TEL",null,null,null,null,null,null,null,null,null,null,"　TEL",null,null,null,null,null,null,null,null,null,null,null,null,null,null,null,null,null,null,null,null,null,null,null,null,null,null,null,null,null,null,null,null,null,null,null,null,"＊記入内容に変更があった場合は、この書面様式にてご連絡ください。"]

{"sheet":"(BACK)カタログ掲載申込書兼企画書","index":1,"n_rows":59,"n_cols":84,"rows_kept":59,"cut":false,"hidden":true,"merged":[[7,77,7,81],[7,2,7,6],[7,9,7,23],[7,34,7,37],[7,39,7,41],[7,42,7,44],[0,56,0,59],[0,64,0,66],[0,73,2,83],[2,2,2,6],[2,7,2,12],[6,2,6,8],[6,9,6,23],[6,34,6,37],[6,39,6,41],[6,42,6,44],[6,48,6,51],[5,49,5,51],[5,52,5,57],[5,59,5,62],[5,63,5,68],[7,54,7,59],[7,60,7,65],[6,63,6,68],[8,2,8,8],[8,9,8,23],[8,34,8,37],[8,39,8,41],[8,42,8,44],[10,2,10,6],[10,7,10,8],[10,9,10,23],[10,48,10,51],[8,48,8,53],[14,35,14,46],[15,2,15,6],[15,7,15,8],[15,9,15,23],[15,25,15,33],[12,35,13,44],[11,2,11,6],[11,7,11,8],[11,9,11,23],[13,2,13,8],[13,9,13,23],[13,25,13,33],[12,2,12,6],[12,7,12,8],[12,9,12,23],[16,2,16,6],[16,7,16,8],[16,9,16,23],[16,25,16,26],[16,27,16,28],[14,2,14,6],[14,7,14,8],[14,9,14,23],[14,25,14,33],[19,9,19,23],[19,48,19,51],[17,2,17,23],[17,28,17,31],[17,35,17,45],[17,48,17,51],[18,59,18,62],[18,63,18,67],[18,2,18,7],[18,9,18,23],[18,48,18,51],[19,59,19,62],[19,63,19,67],[20,2,20,6],[20,7,20,8],[20,9,20,23],[20,32,20,45],[20,48,20,51],[21,2,21,6],[21,7,21,8],[21,9,21,23],[24,59,24,62],[23,2,23,6],[23,7,23,8],[23,9,23,23],[24,2,24,6],[24,7,24,8],[24,9,24,23],[24,35,24,38],[24,39,24,45],[22,2,22,6],[22,7,22,8],[22,9,22,23],[26,2,26,7],[26,9,26,23],[26,33,26,36],[26,42,26,43],[26,44,26,45],[27,2,27,7],[27,9,27,23],[25,2,25,23],[22,35,22,38],[22,39,22,45],[28,2,29,23],[28,42,28,43],[28,44,28,45],[31,2,31,6],[31,7,31,8],[31,9,31,23],[31,59,31,62],[32,2,32,7],[32,9,32,23],[32,30,32,45],[30,2,30,6],[30,7,30,8],[30,9,30,23],[30,32,30,36],[30,42,30,43],[30,44,30,45],[30,59,30,62],[32,59,32,62],[32,48,32,51],[32,52,32,56],[30,48,31,51],[30,52,31,57],[28,48,28,51],[33,2,33,23],[34,2,34,5],[34,6,34,8],[35,2,35,5],[35,6,35,8],[36,2,37,23],[37,31,37,35],[37,36,37,40],[37,41,37,45],[37,75,37,80],[38,2,38,6],[38,7,38,8],[38,9,38,23],[38,31,38,35],[38,36,38,40],[38,41,38,45],[38,48,38,51],[38,59,39,61],[38,52,38,57],[38,62,39,62],[38,63,39,68],[38,75,38,80],[39,31,39,35],[39,36,39,40],[39,41,39,45],[39,48,39,51],[39,52,39,57],[39,75,39,80],[37,48,37,51],[37,52,37,57],[42,13,42,20],[42,31,42,35],[42,36,42,40],[42,41,42,45],[40,31,40,35],[40,36,40,40],[40,41,40,45],[43,36,43,40],[43,41,43,45],[42,78,42,80],[43,31,43,35],[44,31,44,35],[44,36,44,40],[40,75,40,80],[41,31,41,35],[41,36,41,40],[41,41,41,45],[41,75,41,80],[44,41,44,45],[46,26,50,46],[47,48,57,63],[51,4,51,11],[51,15,51,23],[52,4,52,11],[52,15,52,23],[53,4,53,11],[53,12,53,14],[53,15,53,23],[51,65,51,68],[53,65,53,68],[55,66,55,67],[57,73,58,83],[58,4,58,11],[58,15,58,23],[55,4,55,11],[55,15,55,23],[56,4,56,11],[56,15,56,23],[57,4,57,11],[57,15,57,23],[57,65,57,68],[53,26,55,41],[57,26,58,41],[57,43,58,46],[13,59,13,62],[13,48,13,51],[13,52,13,57],[13,63,13,68],[45,65,45,68],[46,65,46,66],[47,65,47,68],[48,65,48,68],[50,65,50,66],[50,67,50,68],[27,52,27,57],[27,59,27,62],[27,63,27,68],[28,52,28,53],[28,54,28,57],[24,63,24,68],[23,48,24,51],[23,52,24,57],[23,59,23,62],[23,63,23,68],[31,63,31,65],[31,66,31,67],[30,63,30,68],[14,48,14,51],[6,52,6,62],[7,48,7,53],[10,59,11,62],[10,63,11,68],[11,48,12,51],[11,52,12,57],[12,59,12,62],[12,63,12,65],[12,66,12,68],[8,54,8,59],[8,60,8,65],[10,52,10,57],[14,52,14,57],[14,59,14,62],[14,63,14,68],[18,52,18,56],[19,52,19,56],[20,52,20,56],[17,52,17,56],[28,59,28,62],[28,63,28,68],[21,52,22,57],[21,59,22,62],[27,48,27,51],[21,63,22,68],[20,59,20,62],[20,63,20,67],[15,48,15,51],[15,52,15,57],[32,63,32,68],[33,52,33,57],[36,48,36,51],[36,52,36,57],[36,59,37,61],[36,62,37,62],[36,63,37,68],[33,48,33,51],[33,59,33,62],[33,63,33,68],[21,48,22,51],[17,59,17,62],[17,63,17,68]]}
[null,"カタログ企画書【ＴＳ商流カタログ専用】",null,null,null,null,null,null,null,null,null,null,null,null,null,null,null,null,null,null,null,null,null,null,null,null,null,null,null,null,null,null,null,null,null,null,null,null,null,null,null,null,null,null,null,null,null,null,null,null,null,null,null,null,null,null,{"$f":"TODAY()","v":"2020-12-24"},null,null,null,null,"Vol.1．7",null,null,"2016-01-01",null,null,"改訂版",null,null,null,null,null,"←　非表示にして　→"]
[]
[null,1,"お申込日",null,null,null,null,{"$f":"新!$H$3","v":"00:00:00"},null,null,null,null,null,{"$f":"IF(H3<BE1-5,\"←日付を確認してください\",\"\")","v":"←日付を確認してください"}]
[]
[null,"【取引先様　企業概要】",null,null,null,null,null,null,null,null,null,null,null,null,null,null,null,null,null,null,null,null,null,null,null,null,null,null,null,null,null,null,null,null,null,null,null,null,null,null,null,null,null,null,null,null,null,null,"【カタログ情報】　",null,null,null,null,null,null,null,null,null,null,null,null,null,null,null,null,null,null,null,null,null,null,null,null,null,"受付",null,null,{"$f":"BA7","v":""},{"$f":"BL7","v":"←正確なカタログ名を記入してください"},{"$f":"BN7","v":"00:00:00"},{"$f":"BL8","v":0},{"$f":"VLOOKUP(BA8,BW16:CB19,6,FALSE)","v":{"$error":"#N/A"}}]
[null,2,"契約書乙部分",null,null,null,null,null,null,null,null,null,null,null,null,null,null,null,null,null,null,null,null,null,null,14,"事業運営概要（直近３年決算分）",null,null,null,null,null,null,null,null,null,null,null,null,null,null,null,null,null,null,null,null,null,23,"施策種別",null,null,{"$f":"IF(新!BB6=\"\",\"\",新!BB6)","v":"ふるさと納税"},null,null,null,null,null,null,"WEBへの掲載　必須",null,null,null,{"$f":"IF(新!BM6=\"\",\"\",新!BM6)","v":"無し"},null,null,null,null,null,null,null,null,null,null,"社名/カタログ名",null,null,{"$f":"J11","v":"株式会社　郵便局物販サービス"},{"$f":"BA12","v":"TS直販（カタログ無）"},{"$f":"BA11","v":"通常"}]
[null,null,"会社名",null,null,null,null,null,null,{"$f":"IF(新!J7=\"\",\"\",新!J7)","v":""},null,null,null,null,null,null,null,null,null,null,null,null,null,null,null,null,"平成",null,"年度",null,"月決算",null,null,"売上高",null,null,null,null,"千円","税引き後損益",null,null,null,null,null,"千円",null,null,"カタログ名　　全半角",null,null,null,{"$f":"IF(新!BB7=\"\",\"\",新!BB7)","v":""},null,null,null,null,null,null,null,null,null,null,"←正確なカタログ名を記入してください",null,null,null,null,null,null,null,null,null,null,"データ区分",null,null,{"$f":"IF(BA17=\"CSV\",\"\",\"\")","v":""},{"$f":"AW14","v":"展開エリア1　必須"},{"$f":"BC14","v":"00:00:00"},{"$f":"IF(BI14=\"\",\"-\",BI14)","v":"-"}]
[null,null,"住　　所",null,null,null,null,null,"〒",{"$f":"IF(新!J8=\"\",\"\",新!J8)","v":""},null,null,null,null,null,null,null,null,null,null,null,null,null,null,null,null,"平成",null,"年度",null,"月決算",null,null,"売上高",null,null,null,null,"千円","税引き後損益",null,null,null,null,null,"千円",null,null,"カタログ注文開始日　yyyy/mm/dd",null,null,null,null,null,"カタログ注文終了日　yyyy/mm/dd",null,null,null,null,null,"WEB注文終了日　yyyy/mm/dd",null,null,null,null,null,"開始","終了","WEB",null,null,null,null,null,"エリア",null,null,{"$f":"BA19&\"　\"&BA20&\"　\"&BA21","v":"　　"}]
[null,null,"契約書締結者役職・氏名",null,null,null,null,null,null,{"$f":"IF(新!J9=\"\",\"\",新!J9)","v":""},null,null,null,null,null,null,null,null,null,null,null,null,null,null,null,null,"平成",null,"年度",null,"月決算",null,null,"売上高",null,null,null,null,"千円","税引き後損益",null,null,null,null,null,"千円",null,null,{"$f":"IF(新!AX9=\"\",\"\",新!AX9)","v":""},null,null,null,null,null,{"$f":"IF(新!BD9=\"\",\"\",新!BD9)","v":""},null,null,null,null,null,{"$f":"IF(新!BJ9=\"\",\"\",新!BJ9)","v":""},null,null,null,null,null,{"$f":"IF(AW9=\"\",\"\",IF(AW9>BE1,\"●\",\"×確認\"))","v":""},{"$f":"IF(BC9=\"\",\"\",IF(BC9>AW9,\"●\",\"×確認\"))","v":""},{"$f":"IF(BI9=\"\",\"\",IF(BI9>=BC9,\"●\",\"×確認\"))","v":""},null,null,null,null,null,"事業者",null,null,{"$f":"BL39","v":0},{"$f":"BL41","v":0},{"$f":"BX38","v":"中国（TS）"}]
[]
[null,3,"事業者名",null,null,null,null,"全半角",null,"株式会社　郵便局物販サービス",null,null,null,null,null,null,null,null,null,null,null,null,null,null,null,null,"法人種別（該当する項目に○を記入ください）",null,null,null,null,null,null,null,null,null,null,null,null,null,null,null,null,null,null,null,null,null,"カタログ種別",null,null,null,{"$f":"IF(新!BB11=\"\",\"\",新!BB11)","v":"通常"},null,null,null,null,null,null,"仕入区分（発注/精算）",null,null,null,{"$f":"IF(新!BM11=\"\",\"\",新!BM11)","v":"CSS→TS直販"},null,null,null,null,null,null,null,null,null,null,"選考会議日",null,null,{"$f":"BA29","v":"TS"}]
[null,null,"　事業者名カナ",null,null,null,null,"全角カタカナ",null,"カブシキガイシャ　ユウビンキョクブッパンサービス",null,null,null,null,null,null,null,null,null,null,null,null,null,null,null,null,null,null,"株式会社・有限会社",null,null,null,null,null,"協同組合",null,null,null,"個人事業主",null,null,null,null,"その他",null,null,null,null,"商流区分　　必須",null,null,null,{"$f":"IF(新!BB12=\"\",\"\",新!BB12)","v":"TS直販（カタログ無）"},null,null,null,null,null,null,null,null,null,null,null,null,null,null,null,null,null,null,null,null,null,"斡旋／決済",null,null,{"$f":"BL29","v":""},{"$f":"IF(BL30=\"従量制\",\"従量制\",IF(BO30=\"\",\"\",IF(BL30=\"料率\",BO30&\"%\",BO30)))","v":""},"前年コード","イベント",{"$f":"AP42","v":52420}]
[null,null,"　郵便番号",null,null,null,null,"半角",null,"135-0016",null,null,null,null,null,null,null,null,null,null,null,null,null,null,null,15,"主要な事業",null,null,null,null,null,null,null,16,"貴社売上の中で、郵便局関連カタログの販売が占める比率を記入してください",null,null,null,null,null,null,null,null,null,null,null,null,null,null,null,null,null,null,null,null,null,null,null,"CSS発注方式",null,null,null,{"$f":"IF(新!BM13=\"\",\"\",新!BM13)","v":"CSV"},null,null,{"$f":"IF(BL11=BZ19,\"電算は基本PDF\",\"\")","v":""},null,null,null,null,null,null,null,"計画/仕入率",null,null,{"$f":"BA31*1000","v":{"$error":"#VALUE!"}},{"$f":"BA32","v":0},null,"その他",{"$f":"AP45","v":0}]
[null,null,"　住所１　（丁目まで記入ください）",null,null,null,null,null,null,"東京都江東区東陽４丁目1番13号",null,null,null,null,null,null,null,null,null,null,null,null,null,null,null,null,null,null,null,null,null,null,null,null,null,null,null,null,null,null,null,null,null,null,null,null,"％",null,"展開エリア1　必須",null,null,null,{"$f":"IF(新!BB14=\"\",\"\",新!BB14)","v":"全国（本社）"},null,null,null,null,null,null,"POS注文対応",null,null,null,{"$f":"IF(新!BM14=\"\",\"\",新!BM14)","v":"非対応"}]
[null,null,"　住所２　　　　　　　　",null,null,null,null,"全半角",null,"東陽セントラルビル",null,null,null,null,null,null,null,null,null,null,null,null,null,null,null,null,null,null,null,null,null,null,null,null,17,"郵便局カタログ販売に参加している関連会社の有無（出資又は役員兼務）",null,null,null,null,null,null,null,null,null,null,null,null,"　　展開エリア2",null,null,null,{"$f":"IF(新!BB15=\"\",\"\",新!BB15)","v":""},null,null,null,null,null,null,"POSカタログ区分",null,null,null,{"$f":"IF(新!BM15=\"\",\"\",新!BM15)","v":"-"}]
[null,null,"　代表者名",null,null,null,null,"全半角",null,null,null,null,null,null,null,null,null,null,null,null,null,null,null,null,null,null,null,null,null,null,null,null,null,null,null,null,"有",null,"無",null,null,null,null,null,null,null,null,null,"展開エリア3　入力",null,null,null,{"$f":"IF(新!BB16=\"\",\"\",新!BB16)","v":""},null,null,null,null,null,null,null,null,null,null,null,null,null,null,null,null,null,null,null,null,null,"TS直販",null,null,"CSS→TS直販",null,"TS直販",null,null,"CSV"]
[null,null,"　代表者名カナ",null,null,null,null,"全角カタカナ",null,null,null,null,null,null,null,null,null,null,null,null,null,null,null,null,null,"会社設立年月日",null,null,null,"年",null,"月",null,"日",null,"「有り」の場合は具体的名称を記入ください",null,null,null,null,null,null,null,null,null,null,null,null,null,null,null,null,null,null,null,null,null,null,null,null,null,null,null,null,null,null,null,null,null,null,null,null,null,null,"TS直販（Web限定）",null,null,"Web→TS直販",null,"TS直販",null,null,"－"]
[null,4,"本社以外が申し込む場合のカタログ参加支社情報（該当しない場合は記入不要です）",null,null,null,null,null,null,null,null,null,null,null,null,null,null,null,null,null,null,null,null,null,null,"資本金（万円）",null,null,null,null,null,null,"万円",null,null,null,null,null,null,null,null,null,null,null,null,null,null,null,"カタログページ数",null,null,null,{"$f":"IF(新!BB18=\"\",\"\",新!BB18)","v":""},null,null,null,null,"/頁",null,"カタログ制作仕様",null,null,null,{"$f":"IF(新!BM18=\"\",\"\",新!BM18)","v":""},null,null,null,null,null,null,null,null,null,null,"TS直販（売報）",null,null,"売報",null,"TS売報",null,null,"－"]
[null,null,"住　　所",null,null,null,null,null,"〒",{"$f":"IF(新!J19=\"\",\"\",新!J19)","v":""},null,null,null,null,null,null,null,null,null,null,null,null,null,null,null,18,"申込商品の取扱いに関わる関係（該当する項目に○を記入してください）",null,null,null,null,null,null,null,null,null,null,null,null,null,null,null,null,null,null,null,null,null,"ページあたり コマ数",null,null,null,{"$f":"IF(新!BB19=\"\",\"\",新!BB19)","v":""},null,null,null,null,"/点",null,"平均単価見込み",null,null,null,{"$f":"IF(新!BM19=\"\",\"\",新!BM19)","v":""},null,null,null,null,"/円",null,null,null,null,null,"TS直販（JP外）",null,null,"電算",null,"TS直販（-CSS）",null,null,"－"]
[null,null,"支社支店名",null,null,null,null,null,null,{"$f":"IF(新!J20=\"\",\"\",新!J20)","v":""},null,null,null,null,null,null,null,null,null,null,null,null,null,null,null,null,"①他社に製造委託する販売者",null,null,null,null,null,null,null,null,null,null,null,null,null,null,null,null,null,null,null,null,null,"合計コマ数",null,null,null,{"$f":"IF(新!BB20=\"\",\"\",新!BB20)","v":""},null,null,null,null,"/点",null,"カタログ作成 部数",null,null,null,{"$f":"IF(新!BM20=\"\",\"\",新!BM20)","v":""},null,null,null,null,"/部"]
[null,5,"カタログ担当者名",null,null,null,null,"全半角",null,null,null,null,null,null,null,null,null,null,null,null,null,null,null,null,null,null,null,"製造（仕入）企業名",null,null,null,null,null,null,null,null,null,null,null,null,null,null,null,null,null,null,null,null,"アイテム数",null,null,null,{"$f":"IF(新!BB21=\"\",\"\",新!BB21)","v":""},null,null,null,null,"/点",null,"物流センター 納入数",null,null,null,{"$f":"IF(新!BM21=\"\",\"\",新!BM21)","v":""},null,null,null,null,"/部"]
[null,null,"　担当部署名",null,null,null,null,"全半角",null,null,null,null,null,null,null,null,null,null,null,null,null,null,null,null,null,null,"②加工品メーカー（農産加工品・水産加工品・畜肉加工品・生麺・漬物類等）",null,null,null,null,null,null,null,null,null,null,null,null,null,null,null,null,null,null,null,null,null,"企画内容（コンセプト）",null,null,null,{"$f":"IF(新!BB22=\"\",\"\",新!BB22)","v":""},null,null,null,null,null,null,"物流センターへの\n納品日",null,null,null,{"$f":"IF(新!BM22=\"\",\"\",新!BM22)","v":""},null,null,null,null,null,null,null,null,null,null,"本社（TS）",null,"3501",null,"業務",null,null,"全国（本社）","本社"]
[null,null,"　連絡先電話番号",null,null,null,null,"半角",null,null,null,null,null,null,null,null,null,null,null,null,null,null,null,null,null,null,null,"商品製造工場",null,null,null,"自社工場",null,null,null,"委託工場　企業名",null,null,null,null,null,null,null,null,null,null,null,null,null,null,null,null,null,null,null,null,null,null,null,null,null,null,null,null,null,null,null,null,null,null,null,null,null,null,"北海道（TS）",null,"1001",null,"カタログ種別",{"$f":"BA18","v":""},null,"北海道","北海道"]
[null,null,"　連絡先FAX",null,null,null,null,"半角",null,null,null,null,null,null,null,null,null,null,null,null,null,null,null,null,null,null,"③加工品メーカー（飲料・菓子・調味料等）",null,null,null,null,null,null,null,null,null,null,null,null,null,null,null,null,null,null,null,null,null,"主な商品内容",null,null,null,{"$f":"IF(新!BB24=\"\",\"\",新!BB24)","v":""},null,null,null,null,null,null,"旧郵便事業会社への委託",null,null,null,{"$f":"IF(新!BM24=\"\",\"\",新!BM24)","v":"無し"},null,null,null,null,null,null,null,null,null,null,"東北（TS）",null,"2001",null,"施策種別",{"$f":"BA11","v":"通常"},null,"東北","東北"]
[null,null,"　担当者メールアドレス　　",null,null,null,null,"半角",null,null,null,null,null,null,null,null,null,null,null,null,null,null,null,null,null,null,null,"商品製造工場",null,null,null,"自社工場",null,null,null,"委託工場　企業名",null,null,null,null,null,null,null,null,null,null,null,null,null,null,null,null,null,null,null,null,null,null,null,"「委託無し」の場合理由を記入ください",null,null,null,{"$f":"IF(新!BM25=\"\",\"\",新!BM25)","v":""},null,null,null,null,null,null,null,null,null,null,"関東（TS）",null,"3101",null,"カタログ名",{"$f":"BA12","v":"TS直販（カタログ無）"},null,"関東","関東"]
[null,null,"　* 担当者メールアドレス⇒ カタログ掲載申込みのご担当者様のメールアドレスをご記入ください。",null,null,null,null,null,null,null,null,null,null,null,null,null,null,null,null,null,null,null,null,null,null,null,"④農産品（卸・仲卸・ＪＡ等）",null,null,null,null,null,null,null,null,null,null,null,null,null,null,null,null,null,null,null,null,null,null,null,null,null,null,null,null,null,null,null,null,null,null,null,null,null,null,null,null,null,null,null,null,null,null,null,"東京（TS）",null,"3301",null,"開始日",{"$f":"AW14","v":"展開エリア1　必須"},null,"東京","東京"]
[null,6,"発注連絡用メールアドレス①",null,null,null,null,null,"必須",null,null,null,null,null,null,null,null,null,null,null,null,null,null,null,null,null,null,"商品仕入先",null,null,null,"青果市場",null,null,null,null,null,null,null,"農家直接",null,null,"その他",null,null,null,null,null,"【TS担当者情報】　*TSの企画書受付担当者が入力してください。",null,null,null,null,null,null,null,null,null,null,null,null,null,null,null,null,null,null,null,null,null,null,null,null,null,"南関東（TS）",null,"3201",null,"終了日",{"$f":"BC14","v":"00:00:00"},null,"南関東","南関東"]
[null,null,"発注連絡用メールアドレス②",null,null,null,null,null,null,null,null,null,null,null,null,null,null,null,null,null,null,null,null,null,null,null,"⑤農産品生産者",null,null,null,null,null,null,null,null,null,null,null,null,null,null,null,null,null,null,null,null,null,"受付日　　　*",null,null,null,{"$f":"IF(新!BB28=\"\",\"\",新!BB28)","v":""},null,null,null,null,null,null,"担当者名　　　*",null,null,null,{"$f":"IF(新!BM28=\"\",\"\",新!BM28)","v":""},null,null,null,null,null,null,null,null,null,null,"信越（TS）",null,"3401",null,"Web終了日",{"$f":"BI14","v":"00:00:00"},null,"信越","信越"]
[null,null,"　*　発注連絡用メールアドレス⇒ 発注情報を受取るメールアドレスをご記入ください。 \n　　　①は必須、②は任意です。発注情報は、入力された発注連絡用メールアドレス①～②に一斉配信します。",null,null,null,null,null,null,null,null,null,null,null,null,null,null,null,null,null,null,null,null,null,null,null,null,"経営形態",null,null,null,"個人",null,null,null,"農業法人",null,null,null,"組合",null,null,"その他",null,null,null,null,null,"事業本部/支社名　*",null,null,null,"TS",null,"本社",null,null,null,null,"整理番号",null,null,null,{"$f":"IF(新!BM29=\"\",\"\",新!BM29)","v":""},null,null,null,null,null,null,null,null,null,null,"北陸（TS）",null,"4001",null,"発注方式",{"$f":"#REF!","v":{"$error":"#REF!"}},null,"北陸","北陸"]
[null,null,null,null,null,null,null,null,null,null,null,null,null,null,null,null,null,null,null,null,null,null,null,null,null,null,"⑥水産生鮮品生産者（卸・仲卸・漁協等）",null,null,null,null,null,null,null,null,null,null,null,null,null,null,null,null,null,null,null,null,null,"【選考会議資料情報】　",null,null,null,null,null,"※選考会議資料から、下記情報を記入してください。",null,null,null,null,null,null,null,null,null,null,null,null,null,null,null,null,null,null,null,"東海（TS）",null,"5001",null,"仕入区分","斡旋",null,"東海","東海"]
[null,7,"精算（経理）担当者名",null,null,null,null,"全半角",null,null,null,null,null,null,null,null,null,null,null,null,null,null,null,null,null,null,null,"商品仕入先",null,null,null,"市場",null,null,null,null,null,null,null,"直接",null,null,"その他",null,null,null,null,null,"選考会議日　*",null,null,null,{"$f":"IF(新!BB31=\"\",\"\",新!BB31)","v":""},null,null,null,null,null,null,"斡旋手数料率　*",null,null,null,{"$f":"IF(新!BM31=\"\",\"\",新!BM31)","v":""},null,null,null,null,null,null,null,null,null,null,"近畿（TS）",null,"6001",null,"エリア",{"$f":"BA19&\"　\"&BA20&\"　\"&BA21","v":"　　"},null,"近畿","近畿"]
[null,null,"精算（経理）担当者電話番号",null,null,null,null,"半角",null,null,null,null,null,null,null,null,null,null,null,null,null,null,null,null,null,null,"⑦食肉生鮮品生産者",null,null,null,null,null,null,null,null,null,null,null,null,null,null,null,null,null,null,null,null,null,null,null,null,null,null,null,null,null,null,null,null,"決済手数料　*",null,null,null,{"$f":"IF(新!BM32=\"\",\"\",新!BM32)","v":""},null,null,{"$f":"IF(新!BP32=\"\",\"\",新!BP32)","v":""},null,{"$f":"IF(BL32=\"固定金額\",\"円\",IF(BL32=\"料率\",\"％\",\"\"))","v":""},null,null,null,null,null,"中国（TS）",null,"7001",null,"POS",{"$f":"BA22","v":""},null,"中国","中国"]
[null,null,"精算通知用メールアドレス",null,null,null,null,null,"必須",null,null,null,null,null,null,null,null,null,null,null,null,null,null,null,null,null,null,"仕入先名",null,null,null,null,null,null,null,null,null,null,null,null,null,null,null,null,null,null,null,null,"販売目標金額　*",null,null,null,{"$f":"IF(新!BB33=\"\",\"\",新!BB33)","v":""},null,null,null,null,"/千円",null,"クレジット手数料　*",null,null,null,{"$f":"IF(新!BM33=\"\",\"\",新!BM33)","v":""},null,null,null,null,null,null,null,null,null,null,"四国（TS）",null,"8001",null,"POSカタログ区分",{"$f":"BA23","v":0},null,"四国","四国"]
[null,null,"　*　精算通知用メールアドレス（必須）⇒ 精算情報を受取るメールアドレスを記入ください。",null,null,null,null,null,null,null,null,null,null,null,null,null,null,null,null,null,null,null,null,null,null,"【カタログ・チラシ参加実績】",null,null,null,null,null,null,null,null,null,null,null,null,null,null,null,null,null,null,null,null,null,null,"商品仕入率　*",null,null,null,{"$f":"IF(新!BB34=\"\",\"\",新!BB34)","v":""},null,null,null,null,null,null,"自払手数料　*",null,null,null,{"$f":"IF(新!BM34=\"\",\"\",新!BM34)","v":""},null,null,null,null,null,null,null,null,null,null,"九州（TS）",null,"9001",null,null,null,null,"九州","九州"]
[null,8,"精算用　ゆうちょ銀行",null,null,null,"総合口座番号",null,null,{"$f":"新!J35","v":1},null,null,null,0,"-",null,null,null,null,null,null,null,1,null,null,19,"郵便局関連のカタログへの参加実績（現在参加中～過去1年分）　",null,null,null,null,null,null,null,null,null,null,null,null,null,null,null,null,null,null,null,null,null,null,null,null,null,null,null,null,null,null,null,null,null,null,null,null,null,null,null,null,null,null,null,null,null,null,null,"沖縄（TS）",null,"0001",null,null,null,null,"沖縄","沖縄"]
[null,null,null,null,null,null,"振替口座番号",null,null,null,null,null,null,null,"-",null,"-",null,null,null,null,null,null,null,null,null,"該当項目すべてに○を記入してください。　＊イベントの例：「子供の日」「敬老の日」「鍋じまん」「クリスマス」等",null,null,null,null,null,null,null,null,null,null,null,null,null,null,null,null,null,null,null,null,null,"【TS設定済コード情報】",null,null,null,null,null,null,"※品目コードは15ケタです。",null,null,null,null,null,null,null,null,null,null,null,null,null,null,null,null,null,null,null,null,null,null,null,null,null,"本社","食品２部"]
[null,null,"　*　上記に、ゆうちょ銀行の総合口座又は振替口座の記号番号を、右詰めで記入してください。\n　*　両方に記入があった場合、総合口座を優先させていただきます。",null,null,null,null,null,null,null,null,null,null,null,null,null,null,null,null,null,null,null,null,null,null,null,null,null,null,null,null,"年度",null,null,null,null,"展開エリア",null,null,null,null,"カタログコード",null,null,null,null,null,null,{"$f":"新!AX37","v":"品目コード1（）"},null,null,null,null,null,null,null,null,null,null,"事業者コード",null,null,"半角",null,null,null,null,null,null,null,null,null,null,null,"品目コード",null,null,null,null,null,null,null,"推進３部"]
[null,null,null,null,null,null,null,null,null,null,null,null,null,null,null,null,null,null,null,null,null,null,null,null,null,null,null,"　全国版カタログ",null,null,null,null,null,null,null,null,null,null,null,null,null,null,null,null,null,null,null,null,{"$f":"新!AX38","v":"品目コード2（）"},null,null,null,null,null,null,null,null,null,null,null,null,null,null,null,null,null,null,null,null,null,null,null,null,null,"地域コード","中国（TS）"]
[null,9,"精算用　口座名義カナ",null,null,null,null,"全角カタカナ",null,null,null,null,null,null,null,null,null,null,null,null,null,null,null,null,null,null,null,"　単独版チラシ",null,null,null,null,null,null,null,null,null,null,null,null,null,null,null,null,null,null,null,null,{"$f":"新!AX39","v":"品目コード3（）"},null,null,null,null,null,null,null,null,null,null,"カタログコード",null,null,"半角",null,null,null,null,null,null,null,null,null,null,null,1,{"$f":"IF(BX38=\"\",\"\",CD39&VLOOKUP(BX38,BW22:CB35,3,FALSE)&BL41&CE39)","v":"KKK7001000"},null,null,null,null,null,"KKK","000"]
[null,null,"*　通帳に印字されている通りに記入してください。なお、通帳コピーを添付をお願いします。",null,null,null,null,null,null,null,null,null,null,null,null,null,null,null,null,null,null,null,null,null,null,null,null,"　お中元カタログ",null,null,null,null,null,null,null,null,null,null,null,null,null,12324,null,null,null,null,null,null,{"$f":"新!AX40","v":"品目コード4（）"},null,null,null,null,null,null,null,null,null,null,null,null,null,null,null,null,null,null,null,null,null,null,null,null,null,2,{"$f":"IF(CD40=\"\",\"\",CD40&MID(BX39,4,9)&CE40)","v":""}]
[null,null,null,null,null,null,null,null,null,null,null,null,null,null,null,null,null,null,null,null,null,null,null,null,null,null,null,"　お歳暮カタログ",null,null,null,null,null,null,null,null,null,null,null,null,null,42210,null,null,null,null,null,null,null,null,null,null,null,null,null,null,null,null,null,null,null,null,null,null,null,null,null,null,null,null,null,null,null,null,3,{"$f":"IF(CD41=\"\",\"\",CD41&MID(BX40,4,9)&CE41)","v":""}]
[null,10,"料金後納郵便お客様番号（32桁） （ 後納申請窓口・差出予定局を記入してください。）",null,null,null,null,null,null,null,null,null,null,null,null,null,null,null,null,null,null,null,null,null,null,null,null,"　イベント",null,null,null,null,null,null,null,null,null,null,null,null,null,52420,null,null,null,null,null,null,null,null,null,null,null,null,null,null,null,null,null,null,null,null,null,null,null,null,null,null,null,null,null,null,null,null,4,{"$f":"IF(CD42=\"\",\"\",CD42&MID(BX41,4,9)&CE42)","v":""}]
[null,null,null,null,"旧　郵便事業会社",null,null,null,null,"旧　局会社",null,null,null,null,null,null,null,null,null,null,null,"郵便局",null,null,null,null,null,"　味倶楽部"]
[null,null,1,2,3,4,5,6,7,8,9,10,null,1,2,3,4,5,6,null,null,null,null,null,null,null,null,"　頒布会"]
[null,null,null,null,null,null,null,null,null,null,null,null,"－",null,null,null,null,null,null,"－",null,null,null,null,null,null,null,"　その他"]
[null,null,null,null,null,null,null,null,null,null,null,null,null,null,"－",null,null,null,null,null,null,null,null,null,null,"【備考欄】",null,null,null,null,null,null,null,null,null,null,null,null,null,null,null,null,null,null,null,null,null,null,null,null,null,null,null,null,null,null,null,null,null,null,null,null,null,null,null,"ＴＳコード設定"]
[null,null,null,null,1,2,3,4,5,6,7,8,9,10,null,1,2,3,4,5,6,null,null,null,null,20,{"$f":"IF(新!$AA$47=\"\",\"\",新!$AA$47)","v":""},null,null,null,null,null,null,null,null,null,null,null,null,null,null,null,null,null,null,null,null,null,"【通信欄】",null,null,null,null,null,null,null,null,null,null,null,null,null,null,null,null,"承認者"]
[null,null,"※","旧ＪＰＥＸシステムをご利用されている場合は、右記に✔を入れてください。",null,null,null,null,null,null,null,null,null,null,null,null,null,null,null,null,null,null,null,null,null,null,null,null,null,null,null,null,null,null,null,null,null,null,null,null,null,null,null,null,null,null,null,null,{"$f":"IF(新!AX48=\"\",\"\",新!AX48)","v":""},null,null,null,null,null,null,null,null,null,null,null,null,null,null,null,null,"氏名"]
[null,null,null,null,null,null,null,null,null,null,null,null,null,null,null,null,null,null,null,null,null,null,null,null,null,null,null,null,null,null,null,null,null,null,null,null,null,null,null,null,null,null,null,null,null,null,null,null,null,null,null,null,null,null,null,null,null,null,null,null,null,null,null,null,null,"1900/1/0"]
[]
[null,11,"業務委託先（他社への業務委託がある場合のみ記入ください）",null,null,null,null,null,null,null,null,null,null,null,null,null,null,null,null,null,null,null,null,null,null,null,null,null,null,null,null,null,null,null,null,null,null,null,null,null,null,null,null,null,null,null,null,null,null,null,null,null,null,null,null,null,null,null,null,null,null,null,null,null,null,"設定者",null,"氏名"]
[null,"　委託先名",null,null,null,null,null,null,null,null,null,null,"　TEL",null,null,null,null,null,null,null,null,null,null,null,null,"【資料提出確認欄】当掲載申込書の提出時に、資料の有・無を確認し該当項目に○を記載してください。",null,null,null,null,null,null,null,null,null,null,null,null,null,null,null,null,null,null,null,null,null,null,null,null,null,null,null,null,null,null,null,null,null,null,null,null,null,null,null,"1900/1/0"]
[null,"　代表者名",null,null,null,null,null,null,null,null,null,null,"　住所",null,null,null,null,null,null,null,null,null,null,null,null,21,"直近3期分の決算書",null,null,null,null,null,null,null,null,null,null,null,null,null,null,null,null,"有"]
[null,"　担当者名",null,null,null,null,null,null,null,null,null,null,"　委託の業務内容",null,null,null,null,null,null,null,null,null,null,null,null,null,"法人の場合は貸借対照表と損益計算書３年分、個人事業者の場合は直近の確定申告書又は青色申告書３期分を提出してください。\n決算書については申し込み時に、前回提出から新たな決算期を迎え、決算期より３ヶ月以上経過している場合は、直近の決算書のみ提出が必要です。　　",null,null,null,null,null,null,null,null,null,null,null,null,null,null,null,null,null,null,null,null,null,null,null,null,null,null,null,null,null,null,null,null,null,null,null,null,null,null,"日本郵便本社"]
[null,12,"お客様対応責任者",null,null,null,null,null,null,null,null,null,13,"個人情報管理責任者"]
[null,"　所属",null,null,null,null,null,null,null,null,null,null,"　所属",null,null,null,null,null,null,null,null,null,null,null,null,null,null,null,null,null,null,null,null,null,null,null,null,null,null,null,null,null,null,null,null,null,null,null,null,null,null,null,null,null,null,null,null,null,null,null,null,null,null,null,null,null,"承認"]
[null,"　役職",null,null,null,null,null,null,null,null,null,null,"　役職",null,null,null,null,null,null,null,null,null,null,null,null,22,"履歴事項全部証明書",null,null,null,null,null,null,null,null,null,null,null,null,null,null,null,null,"有",null,null,null,null,null,null,null,null,null,null,null,null,null,null,null,null,null,null,null,null,null,null,null,null,null,null,null,null,null,null,null,null,null,null,null,null,null,null,null,"　TS　カタログ審査部"]
[null,"　氏名",null,null,null,null,null,null,null,null,null,null,"　氏名",null,null,null,null,null,null,null,null,null,null,null,null,null,"発行後６ヶ月以内の原本。ただし、同一年度のカタログ参加で提出済みであれば、コピーでも可。会社名・代表者名等に変更があった場合、同一年度内に提出済みであっても再提出が必要です。",null,null,null,null,null,null,null,null,null,null,null,null,null,null,null,null,"同一年度のカタログで提出済み（コピー）",null,null,null,null,null,null,null,null,null,null,null,null,null,null,null,null,null,null,null,null,null,"00:00:00",null,null,null,null,null,null,null,"←　非表示にして　→"]
[null,"　TEL",null,null,null,null,null,null,null,null,null,null,"　TEL",null,null,null,null,null,null,null,null,null,null,null,null,null,null,null,null,null,null,null,null,null,null,null,null,null,null,null,null,null,null,null,null,null,null,null,"＊記入内容に変更があった場合は、この書面様式にてご連絡ください。"]

{"sheet":"Sheet1","index":2,"n_rows":0,"n_cols":0,"rows_kept":0,"cut":false,"hidden":false,"merged":[]}